Workbook

Sheet Kilometražo žurnalas
B1: KILOMETRAŽO ŽURNALAS
C11: KOMPENSUOJAMA | E11: IŠ VISO
C12: MYLIOS | E12: KOMPENSACIJA
C17: 2012-05-01 | E17: 2012-05-10
C19: LAIKOTARPIS | E19: LAIKOTARPIS
C20: PRADŽIA | E20: PABAIGA
C26: 54 | E26: 9,800
C28: KOMPENSACIJA | E28: ANKSTESNI DEGALAI
C29: ¢/Mile | E29: RIDOS SKAITIKLIS

Sheet Žurnalo duomenys
B1: KILOMETRAŽO ŽURNALAS
B5: DATA | C5: VEIKLA | D5: 1 RIDOS SKAITIKLIS | E5: VIETA | F5: 2 RIDOS SKAITIKLIS | G5: PASKIRTIS | H5: KOMPENSUOTI | I5: GALONAI | J5: IŠLAIDOS | K5: MYLIOS | L5: MPG | M5: ¢/MILE | N5: PASTABOS
B6: 2012-05-01 | C6: Kelionė | D6: 10,123 | E6: „V“ pavidalo – pagrindinė gatvė | F6: 10,130 | I6: 15.56 | J6: $64.11 | K6: =Mylios -> 7 | L6: =IF(OR(LEN(Duomenys[[#This Row],[2 RIDOS SKAITIKLIS]]),Duomenys[[#This Row],[1 RIDOS SKAITIKLIS]]=""),"",IFERROR(Duomenys[[#This Row],[MYLIOS]]/Duomenys[[#This Row],[GALONAI]],"")) ->  | M6: =IF(Duomenys[[#This Row],[MPG]]="","",100*Duomenys[[#This Row],[IŠLAIDOS]]/Duomenys[[#This Row],[MYLIOS]]) -> 
B7: 2012-05-01 | C7: Kelionė | D7: 10,130 | E7: Biuras | F7: 10,200 | G7: Cherry Street | H7: Taip | K7: =Mylios -> 70 | L7: =IF(OR(LEN(Duomenys[[#This Row],[2 RIDOS SKAITIKLIS]]),Duomenys[[#This Row],[1 RIDOS SKAITIKLIS]]=""),"",IFERROR(Duomenys[[#This Row],[MYLIOS]]/Duomenys[[#This Row],[GALONAI]],"")) ->  | M7: =IF(Duomenys[[#This Row],[MPG]]="","",100*Duomenys[[#This Row],[IŠLAIDOS]]/Duomenys[[#This Row],[MYLIOS]]) -> 
B8: 2012-05-01 | C8: Kelionė | D8: 10,200 | E8: Smithfields | F8: 10,285 | G8: Biuras | H8: Taip | K8: =Mylios -> 85 | L8: =IF(OR(LEN(Duomenys[[#This Row],[2 RIDOS SKAITIKLIS]]),Duomenys[[#This Row],[1 RIDOS SKAITIKLIS]]=""),"",IFERROR(Duomenys[[#This Row],[MYLIOS]]/Duomenys[[#This Row],[GALONAI]],"")) ->  | M8: =IF(Duomenys[[#This Row],[MPG]]="","",100*Duomenys[[#This Row],[IŠLAIDOS]]/Duomenys[[#This Row],[MYLIOS]]) -> 
B9: 2012-05-02 | C9: Kelionė | D9: 10,285 | E9: Biuras | F9: 10,450 | G9: Colo Vineyard | H9: Taip | K9: =Mylios -> 165 | L9: =IF(OR(LEN(Duomenys[[#This Row],[2 RIDOS SKAITIKLIS]]),Duomenys[[#This Row],[1 RIDOS SKAITIKLIS]]=""),"",IFERROR(Duomenys[[#This Row],[MYLIOS]]/Duomenys[[#This Row],[GALONAI]],"")) ->  | M9: =IF(Duomenys[[#This Row],[MPG]]="","",100*Duomenys[[#This Row],[IŠLAIDOS]]/Duomenys[[#This Row],[MYLIOS]]) -> 
B10: 2012-05-02 | C10: Degalai | D10: 10,450 | E10: Shell | I10: 11.20 | J10: $55.42 | K10: =Mylios -> 650 | L10: =IF(OR(LEN(Duomenys[[#This Row],[2 RIDOS SKAITIKLIS]]),Duomenys[[#This Row],[1 RIDOS SKAITIKLIS]]=""),"",IFERROR(Duomenys[[#This Row],[MYLIOS]]/Duomenys[[#This Row],[GALONAI]],"")) -> 58.0 | M10: =IF(Duomenys[[#This Row],[MPG]]="","",100*Duomenys[[#This Row],[IŠLAIDOS]]/Duomenys[[#This Row],[MYLIOS]]) -> 8.5
B11: 2012-05-02 | C11: Kelionė | D11: 10,500 | E11: Colo Vineyard | F11: 10,518 | G11: Biuras | H11: Taip | K11: =Mylios -> 18 | L11: =IF(OR(LEN(Duomenys[[#This Row],[2 RIDOS SKAITIKLIS]]),Duomenys[[#This Row],[1 RIDOS SKAITIKLIS]]=""),"",IFERROR(Duomenys[[#This Row],[MYLIOS]]/Duomenys[[#This Row],[GALONAI]],"")) ->  | M11: =IF(Duomenys[[#This Row],[MPG]]="","",100*Duomenys[[#This Row],[IŠLAIDOS]]/Duomenys[[#This Row],[MYLIOS]]) -> 
B12: 2012-05-03 | C12: Kelionė | D12: 10,518 | E12: Biuras | F12: 10,745 | G12: Biuras | H12: Taip | K12: =Mylios -> 227 | L12: =IF(OR(LEN(Duomenys[[#This Row],[2 RIDOS SKAITIKLIS]]),Duomenys[[#This Row],[1 RIDOS SKAITIKLIS]]=""),"",IFERROR(Duomenys[[#This Row],[MYLIOS]]/Duomenys[[#This Row],[GALONAI]],"")) ->  | M12: =IF(Duomenys[[#This Row],[MPG]]="","",100*Duomenys[[#This Row],[IŠLAIDOS]]/Duomenys[[#This Row],[MYLIOS]]) -> 
B13: 2012-05-04 | C13: Degalai | D13: 10,745 | E13: „V“ pavidalo – pagrindinė gatvė | I13: 16.60 | J13: $69.24 | K13: =Mylios -> 295 | L13: =IF(OR(LEN(Duomenys[[#This Row],[2 RIDOS SKAITIKLIS]]),Duomenys[[#This Row],[1 RIDOS SKAITIKLIS]]=""),"",IFERROR(Duomenys[[#This Row],[MYLIOS]]/Duomenys[[#This Row],[GALONAI]],"")) -> 17.8 | M13: =IF(Duomenys[[#This Row],[MPG]]="","",100*Duomenys[[#This Row],[IŠLAIDOS]]/Duomenys[[#This Row],[MYLIOS]]) -> 23.5
B14: 2012-05-04 | C14: Kelionė | D14: 10,745 | E14: Biuras | F14: 10,800 | G14: Porterville | H14: Taip | K14: =Mylios -> 55 | L14: =IF(OR(LEN(Duomenys[[#This Row],[2 RIDOS SKAITIKLIS]]),Duomenys[[#This Row],[1 RIDOS SKAITIKLIS]]=""),"",IFERROR(Duomenys[[#This Row],[MYLIOS]]/Duomenys[[#This Row],[GALONAI]],"")) ->  | M14: =IF(Duomenys[[#This Row],[MPG]]="","",100*Duomenys[[#This Row],[IŠLAIDOS]]/Duomenys[[#This Row],[MYLIOS]]) -> 
B15: 2012-05-04 | C15: Kelionė | D15: 10,800 | E15: Porterville | F15: 10,875 | G15: Biuras | H15: Taip | K15: =Mylios -> 75 | L15: =IF(OR(LEN(Duomenys[[#This Row],[2 RIDOS SKAITIKLIS]]),Duomenys[[#This Row],[1 RIDOS SKAITIKLIS]]=""),"",IFERROR(Duomenys[[#This Row],[MYLIOS]]/Duomenys[[#This Row],[GALONAI]],"")) ->  | M15: =IF(Duomenys[[#This Row],[MPG]]="","",100*Duomenys[[#This Row],[IŠLAIDOS]]/Duomenys[[#This Row],[MYLIOS]]) -> 
B16: 2012-05-07 | C16: Kelionė | D16: 10,875 | E16: Biuras | F16: 10,921 | G16: Cherry Street | H16: Taip | K16: =Mylios -> 46 | L16: =IF(OR(LEN(Duomenys[[#This Row],[2 RIDOS SKAITIKLIS]]),Duomenys[[#This Row],[1 RIDOS SKAITIKLIS]]=""),"",IFERROR(Duomenys[[#This Row],[MYLIOS]]/Duomenys[[#This Row],[GALONAI]],"")) ->  | M16: =IF(Duomenys[[#This Row],[MPG]]="","",100*Duomenys[[#This Row],[IŠLAIDOS]]/Duomenys[[#This Row],[MYLIOS]]) -> 
B17: 2012-05-07 | C17: Kelionė | D17: 10,921 | E17: Smithfields | F17: 10,969 | G17: Biuras | H17: Taip | K17: =Mylios -> 48 | L17: =IF(OR(LEN(Duomenys[[#This Row],[2 RIDOS SKAITIKLIS]]),Duomenys[[#This Row],[1 RIDOS SKAITIKLIS]]=""),"",IFERROR(Duomenys[[#This Row],[MYLIOS]]/Duomenys[[#This Row],[GALONAI]],"")) ->  | M17: =IF(Duomenys[[#This Row],[MPG]]="","",100*Duomenys[[#This Row],[IŠLAIDOS]]/Duomenys[[#This Row],[MYLIOS]]) -> 
B18: 2012-05-09 | C18: Kelionė | D18: 10,969 | E18: Biuras | F18: 11,000 | G18: Riverside | H18: Taip | K18: =Mylios -> 31 | L18: =IF(OR(LEN(Duomenys[[#This Row],[2 RIDOS SKAITIKLIS]]),Duomenys[[#This Row],[1 RIDOS SKAITIKLIS]]=""),"",IFERROR(Duomenys[[#This Row],[MYLIOS]]/Duomenys[[#This Row],[GALONAI]],"")) ->  | M18: =IF(Duomenys[[#This Row],[MPG]]="","",100*Duomenys[[#This Row],[IŠLAIDOS]]/Duomenys[[#This Row],[MYLIOS]]) -> 
B19: 2012-05-09 | C19: Kelionė | D19: 11,000 | E19: Riverside | F19: 11,100 | G19: Namai | H19: Ne | K19: =Mylios -> 100 | L19: =IF(OR(LEN(Duomenys[[#This Row],[2 RIDOS SKAITIKLIS]]),Duomenys[[#This Row],[1 RIDOS SKAITIKLIS]]=""),"",IFERROR(Duomenys[[#This Row],[MYLIOS]]/Duomenys[[#This Row],[GALONAI]],"")) ->  | M19: =IF(Duomenys[[#This Row],[MPG]]="","",100*Duomenys[[#This Row],[IŠLAIDOS]]/Duomenys[[#This Row],[MYLIOS]]) -> 

Sheet Skaičiavimai (hidden)
A1: *** Šis lapas turi būti paslėptas ***
I6: =OFFSET(I9,,antraAšis="Degalai Išlaidos") -> ¢/Mile
M7: 2
H8: Kelionė | I8: Degalai | J8: Degalai | L8: Antra ašis: | M8: =REPT("MPG",M7=1)&REPT("Degalai Išlaidos",M7=2) -> Degalai Išlaidos
H9: Nuvažiuotas atstumas | I9: MPG | J9: ¢/Mile
C10: Kompensuojamos mylios: | D10: =SUMIFS(Duomenys[MYLIOS],Duomenys[KOMPENSUOTI],"Taip",Duomenys[DATA],">="&periodpPradžia,Duomenys[DATA],"<="&periodoPabaiga) -> 820 | F10: 1 | G10: =periodpPradžia -> 2012-05-01 | H10: =SUMIFS(Duomenys[MYLIOS],Duomenys[DATA],G10,Duomenys[VEIKLA],$H$8) -> 162 | I10: =IFERROR(AVERAGEIFS(Duomenys[MPG],Duomenys[DATA],G10,Duomenys[VEIKLA],$I$8),NA()) ->  | J10: =IFERROR(AVERAGEIFS(Duomenys[¢/MILE],Duomenys[DATA],G10,Duomenys[VEIKLA],$J$8),NA()) -> 
C11: Bendroji kompensuojama suma: | D11: =D10*KompensacijaUžMylią/100 -> 442.80 Lt | F11: 2 | G11: =G10+1 -> 2012-05-02 | H11: =SUMIFS(Duomenys[MYLIOS],Duomenys[DATA],G11,Duomenys[VEIKLA],$H$8) -> 183 | I11: =IFERROR(AVERAGEIFS(Duomenys[MPG],Duomenys[DATA],G11,Duomenys[VEIKLA],$I$8),NA()) -> 58.0 | J11: =IFERROR(AVERAGEIFS(Duomenys[¢/MILE],Duomenys[DATA],G11,Duomenys[VEIKLA],$J$8),NA()) -> 8.5
F12: 3 | G12: 2012-05-03 | H12: =SUMIFS(Duomenys[MYLIOS],Duomenys[DATA],G12,Duomenys[VEIKLA],$H$8) -> 227 | I12: =IFERROR(AVERAGEIFS(Duomenys[MPG],Duomenys[DATA],G12,Duomenys[VEIKLA],$I$8),NA()) ->  | J12: =IFERROR(AVERAGEIFS(Duomenys[¢/MILE],Duomenys[DATA],G12,Duomenys[VEIKLA],$J$8),NA()) -> 
F13: 4 | G13: 2012-05-04 | H13: =SUMIFS(Duomenys[MYLIOS],Duomenys[DATA],G13,Duomenys[VEIKLA],$H$8) -> 130 | I13: =IFERROR(AVERAGEIFS(Duomenys[MPG],Duomenys[DATA],G13,Duomenys[VEIKLA],$I$8),NA()) -> 17.8 | J13: =IFERROR(AVERAGEIFS(Duomenys[¢/MILE],Duomenys[DATA],G13,Duomenys[VEIKLA],$J$8),NA()) -> 23.5
F14: 5 | G14: 2012-05-05 | H14: =SUMIFS(Duomenys[MYLIOS],Duomenys[DATA],G14,Duomenys[VEIKLA],$H$8) -> 0 | I14: =IFERROR(AVERAGEIFS(Duomenys[MPG],Duomenys[DATA],G14,Duomenys[VEIKLA],$I$8),NA()) ->  | J14: =IFERROR(AVERAGEIFS(Duomenys[¢/MILE],Duomenys[DATA],G14,Duomenys[VEIKLA],$J$8),NA()) -> 
F15: 6 | G15: 2012-05-06 | H15: =SUMIFS(Duomenys[MYLIOS],Duomenys[DATA],G15,Duomenys[VEIKLA],$H$8) -> 0 | I15: =IFERROR(AVERAGEIFS(Duomenys[MPG],Duomenys[DATA],G15,Duomenys[VEIKLA],$I$8),NA()) ->  | J15: =IFERROR(AVERAGEIFS(Duomenys[¢/MILE],Duomenys[DATA],G15,Duomenys[VEIKLA],$J$8),NA()) -> 
F16: 7 | G16: 2012-05-07 | H16: =SUMIFS(Duomenys[MYLIOS],Duomenys[DATA],G16,Duomenys[VEIKLA],$H$8) -> 94 | I16: =IFERROR(AVERAGEIFS(Duomenys[MPG],Duomenys[DATA],G16,Duomenys[VEIKLA],$I$8),NA()) ->  | J16: =IFERROR(AVERAGEIFS(Duomenys[¢/MILE],Duomenys[DATA],G16,Duomenys[VEIKLA],$J$8),NA()) -> 
F17: 8 | G17: 2012-05-08 | H17: =SUMIFS(Duomenys[MYLIOS],Duomenys[DATA],G17,Duomenys[VEIKLA],$H$8) -> 0 | I17: =IFERROR(AVERAGEIFS(Duomenys[MPG],Duomenys[DATA],G17,Duomenys[VEIKLA],$I$8),NA()) ->  | J17: =IFERROR(AVERAGEIFS(Duomenys[¢/MILE],Duomenys[DATA],G17,Duomenys[VEIKLA],$J$8),NA()) -> 
F18: 9 | G18: 2012-05-09 | H18: =SUMIFS(Duomenys[MYLIOS],Duomenys[DATA],G18,Duomenys[VEIKLA],$H$8) -> 131 | I18: =IFERROR(AVERAGEIFS(Duomenys[MPG],Duomenys[DATA],G18,Duomenys[VEIKLA],$I$8),NA()) ->  | J18: =IFERROR(AVERAGEIFS(Duomenys[¢/MILE],Duomenys[DATA],G18,Duomenys[VEIKLA],$J$8),NA()) -> 
F19: 10 | G19: 2012-05-10 | H19: =SUMIFS(Duomenys[MYLIOS],Duomenys[DATA],G19,Duomenys[VEIKLA],$H$8) -> 0 | I19: =IFERROR(AVERAGEIFS(Duomenys[MPG],Duomenys[DATA],G19,Duomenys[VEIKLA],$I$8),NA()) ->  | J19: =IFERROR(AVERAGEIFS(Duomenys[¢/MILE],Duomenys[DATA],G19,Duomenys[VEIKLA],$J$8),NA()) -> 
F20: 11 | G20: 2012-05-11 | H20: =SUMIFS(Duomenys[MYLIOS],Duomenys[DATA],G20,Duomenys[VEIKLA],$H$8) -> 0 | I20: =IFERROR(AVERAGEIFS(Duomenys[MPG],Duomenys[DATA],G20,Duomenys[VEIKLA],$I$8),NA()) ->  | J20: =IFERROR(AVERAGEIFS(Duomenys[¢/MILE],Duomenys[DATA],G20,Duomenys[VEIKLA],$J$8),NA()) -> 
F21: 12 | G21: 2012-05-12 | H21: =SUMIFS(Duomenys[MYLIOS],Duomenys[DATA],G21,Duomenys[VEIKLA],$H$8) -> 0 | I21: =IFERROR(AVERAGEIFS(Duomenys[MPG],Duomenys[DATA],G21,Duomenys[VEIKLA],$I$8),NA()) ->  | J21: =IFERROR(AVERAGEIFS(Duomenys[¢/MILE],Duomenys[DATA],G21,Duomenys[VEIKLA],$J$8),NA()) -> 
F22: 13 | G22: 2012-05-13 | H22: =SUMIFS(Duomenys[MYLIOS],Duomenys[DATA],G22,Duomenys[VEIKLA],$H$8) -> 0 | I22: =IFERROR(AVERAGEIFS(Duomenys[MPG],Duomenys[DATA],G22,Duomenys[VEIKLA],$I$8),NA()) ->  | J22: =IFERROR(AVERAGEIFS(Duomenys[¢/MILE],Duomenys[DATA],G22,Duomenys[VEIKLA],$J$8),NA()) -> 
F23: 14 | G23: 2012-05-14 | H23: =SUMIFS(Duomenys[MYLIOS],Duomenys[DATA],G23,Duomenys[VEIKLA],$H$8) -> 0 | I23: =IFERROR(AVERAGEIFS(Duomenys[MPG],Duomenys[DATA],G23,Duomenys[VEIKLA],$I$8),NA()) ->  | J23: =IFERROR(AVERAGEIFS(Duomenys[¢/MILE],Duomenys[DATA],G23,Duomenys[VEIKLA],$J$8),NA()) -> 
F24: 15 | G24: 2012-05-15 | H24: =SUMIFS(Duomenys[MYLIOS],Duomenys[DATA],G24,Duomenys[VEIKLA],$H$8) -> 0 | I24: =IFERROR(AVERAGEIFS(Duomenys[MPG],Duomenys[DATA],G24,Duomenys[VEIKLA],$I$8),NA()) ->  | J24: =IFERROR(AVERAGEIFS(Duomenys[¢/MILE],Duomenys[DATA],G24,Duomenys[VEIKLA],$J$8),NA()) -> 
F25: 16 | G25: 2012-05-16 | H25: =SUMIFS(Duomenys[MYLIOS],Duomenys[DATA],G25,Duomenys[VEIKLA],$H$8) -> 0 | I25: =IFERROR(AVERAGEIFS(Duomenys[MPG],Duomenys[DATA],G25,Duomenys[VEIKLA],$I$8),NA()) ->  | J25: =IFERROR(AVERAGEIFS(Duomenys[¢/MILE],Duomenys[DATA],G25,Duomenys[VEIKLA],$J$8),NA()) -> 
F26: 17 | G26: 2012-05-17 | H26: =SUMIFS(Duomenys[MYLIOS],Duomenys[DATA],G26,Duomenys[VEIKLA],$H$8) -> 0 | I26: =IFERROR(AVERAGEIFS(Duomenys[MPG],Duomenys[DATA],G26,Duomenys[VEIKLA],$I$8),NA()) ->  | J26: =IFERROR(AVERAGEIFS(Duomenys[¢/MILE],Duomenys[DATA],G26,Duomenys[VEIKLA],$J$8),NA()) -> 
F27: 18 | G27: 2012-05-18 | H27: =SUMIFS(Duomenys[MYLIOS],Duomenys[DATA],G27,Duomenys[VEIKLA],$H$8) -> 0 | I27: =IFERROR(AVERAGEIFS(Duomenys[MPG],Duomenys[DATA],G27,Duomenys[VEIKLA],$I$8),NA()) ->  | J27: =IFERROR(AVERAGEIFS(Duomenys[¢/MILE],Duomenys[DATA],G27,Duomenys[VEIKLA],$J$8),NA()) -> 
F28: 19 | G28: 2012-05-19 | H28: =SUMIFS(Duomenys[MYLIOS],Duomenys[DATA],G28,Duomenys[VEIKLA],$H$8) -> 0 | I28: =IFERROR(AVERAGEIFS(Duomenys[MPG],Duomenys[DATA],G28,Duomenys[VEIKLA],$I$8),NA()) ->  | J28: =IFERROR(AVERAGEIFS(Duomenys[¢/MILE],Duomenys[DATA],G28,Duomenys[VEIKLA],$J$8),NA()) -> 
F29: 20 | G29: 2012-05-20 | H29: =SUMIFS(Duomenys[MYLIOS],Duomenys[DATA],G29,Duomenys[VEIKLA],$H$8) -> 0 | I29: =IFERROR(AVERAGEIFS(Duomenys[MPG],Duomenys[DATA],G29,Duomenys[VEIKLA],$I$8),NA()) ->  | J29: =IFERROR(AVERAGEIFS(Duomenys[¢/MILE],Duomenys[DATA],G29,Duomenys[VEIKLA],$J$8),NA()) -> 
F30: 21 | G30: 2012-05-21 | H30: =SUMIFS(Duomenys[MYLIOS],Duomenys[DATA],G30,Duomenys[VEIKLA],$H$8) -> 0 | I30: =IFERROR(AVERAGEIFS(Duomenys[MPG],Duomenys[DATA],G30,Duomenys[VEIKLA],$I$8),NA()) ->  | J30: =IFERROR(AVERAGEIFS(Duomenys[¢/MILE],Duomenys[DATA],G30,Duomenys[VEIKLA],$J$8),NA()) -> 
F31: 22 | G31: 2012-05-22 | H31: =SUMIFS(Duomenys[MYLIOS],Duomenys[DATA],G31,Duomenys[VEIKLA],$H$8) -> 0 | I31: =IFERROR(AVERAGEIFS(Duomenys[MPG],Duomenys[DATA],G31,Duomenys[VEIKLA],$I$8),NA()) ->  | J31: =IFERROR(AVERAGEIFS(Duomenys[¢/MILE],Duomenys[DATA],G31,Duomenys[VEIKLA],$J$8),NA()) -> 
F32: 23 | G32: 2012-05-23 | H32: =SUMIFS(Duomenys[MYLIOS],Duomenys[DATA],G32,Duomenys[VEIKLA],$H$8) -> 0 | I32: =IFERROR(AVERAGEIFS(Duomenys[MPG],Duomenys[DATA],G32,Duomenys[VEIKLA],$I$8),NA()) ->  | J32: =IFERROR(AVERAGEIFS(Duomenys[¢/MILE],Duomenys[DATA],G32,Duomenys[VEIKLA],$J$8),NA()) -> 
F33: 24 | G33: 2012-05-24 | H33: =SUMIFS(Duomenys[MYLIOS],Duomenys[DATA],G33,Duomenys[VEIKLA],$H$8) -> 0 | I33: =IFERROR(AVERAGEIFS(Duomenys[MPG],Duomenys[DATA],G33,Duomenys[VEIKLA],$I$8),NA()) ->  | J33: =IFERROR(AVERAGEIFS(Duomenys[¢/MILE],Duomenys[DATA],G33,Duomenys[VEIKLA],$J$8),NA()) -> 
F34: 25 | G34: 2012-05-25 | H34: =SUMIFS(Duomenys[MYLIOS],Duomenys[DATA],G34,Duomenys[VEIKLA],$H$8) -> 0 | I34: =IFERROR(AVERAGEIFS(Duomenys[MPG],Duomenys[DATA],G34,Duomenys[VEIKLA],$I$8),NA()) ->  | J34: =IFERROR(AVERAGEIFS(Duomenys[¢/MILE],Duomenys[DATA],G34,Duomenys[VEIKLA],$J$8),NA()) -> 
F35: 26 | G35: 2012-05-26 | H35: =SUMIFS(Duomenys[MYLIOS],Duomenys[DATA],G35,Duomenys[VEIKLA],$H$8) -> 0 | I35: =IFERROR(AVERAGEIFS(Duomenys[MPG],Duomenys[DATA],G35,Duomenys[VEIKLA],$I$8),NA()) ->  | J35: =IFERROR(AVERAGEIFS(Duomenys[¢/MILE],Duomenys[DATA],G35,Duomenys[VEIKLA],$J$8),NA()) -> 
F36: 27 | G36: 2012-05-27 | H36: =SUMIFS(Duomenys[MYLIOS],Duomenys[DATA],G36,Duomenys[VEIKLA],$H$8) -> 0 | I36: =IFERROR(AVERAGEIFS(Duomenys[MPG],Duomenys[DATA],G36,Duomenys[VEIKLA],$I$8),NA()) ->  | J36: =IFERROR(AVERAGEIFS(Duomenys[¢/MILE],Duomenys[DATA],G36,Duomenys[VEIKLA],$J$8),NA()) -> 
F37: 28 | G37: 2012-05-28 | H37: =SUMIFS(Duomenys[MYLIOS],Duomenys[DATA],G37,Duomenys[VEIKLA],$H$8) -> 0 | I37: =IFERROR(AVERAGEIFS(Duomenys[MPG],Duomenys[DATA],G37,Duomenys[VEIKLA],$I$8),NA()) ->  | J37: =IFERROR(AVERAGEIFS(Duomenys[¢/MILE],Duomenys[DATA],G37,Duomenys[VEIKLA],$J$8),NA()) -> 
F38: 29 | G38: 2012-05-29 | H38: =SUMIFS(Duomenys[MYLIOS],Duomenys[DATA],G38,Duomenys[VEIKLA],$H$8) -> 0 | I38: =IFERROR(AVERAGEIFS(Duomenys[MPG],Duomenys[DATA],G38,Duomenys[VEIKLA],$I$8),NA()) ->  | J38: =IFERROR(AVERAGEIFS(Duomenys[¢/MILE],Duomenys[DATA],G38,Duomenys[VEIKLA],$J$8),NA()) -> 
F39: 30 | G39: 2012-05-30 | H39: =SUMIFS(Duomenys[MYLIOS],Duomenys[DATA],G39,Duomenys[VEIKLA],$H$8) -> 0 | I39: =IFERROR(AVERAGEIFS(Duomenys[MPG],Duomenys[DATA],G39,Duomenys[VEIKLA],$I$8),NA()) ->  | J39: =IFERROR(AVERAGEIFS(Duomenys[¢/MILE],Duomenys[DATA],G39,Duomenys[VEIKLA],$J$8),NA()) -> 
F40: 31 | G40: 2012-05-31 | H40: =SUMIFS(Duomenys[MYLIOS],Duomenys[DATA],G40,Duomenys[VEIKLA],$H$8) -> 0 | I40: =IFERROR(AVERAGEIFS(Duomenys[MPG],Duomenys[DATA],G40,Duomenys[VEIKLA],$I$8),NA()) ->  | J40: =IFERROR(AVERAGEIFS(Duomenys[¢/MILE],Duomenys[DATA],G40,Duomenys[VEIKLA],$J$8),NA()) -> 
F41: 32 | G41: 2012-06-01 | H41: =SUMIFS(Duomenys[MYLIOS],Duomenys[DATA],G41,Duomenys[VEIKLA],$H$8) -> 0 | I41: =IFERROR(AVERAGEIFS(Duomenys[MPG],Duomenys[DATA],G41,Duomenys[VEIKLA],$I$8),NA()) ->  | J41: =IFERROR(AVERAGEIFS(Duomenys[¢/MILE],Duomenys[DATA],G41,Duomenys[VEIKLA],$J$8),NA()) -> 
F42: 33 | G42: 2012-06-02 | H42: =SUMIFS(Duomenys[MYLIOS],Duomenys[DATA],G42,Duomenys[VEIKLA],$H$8) -> 0 | I42: =IFERROR(AVERAGEIFS(Duomenys[MPG],Duomenys[DATA],G42,Duomenys[VEIKLA],$I$8),NA()) ->  | J42: =IFERROR(AVERAGEIFS(Duomenys[¢/MILE],Duomenys[DATA],G42,Duomenys[VEIKLA],$J$8),NA()) -> 
F43: 34 | G43: =G42+1 -> 2012-06-03 | H43: =SUMIFS(Duomenys[MYLIOS],Duomenys[DATA],G43,Duomenys[VEIKLA],$H$8) -> 0 | I43: =IFERROR(AVERAGEIFS(Duomenys[MPG],Duomenys[DATA],G43,Duomenys[VEIKLA],$I$8),NA()) ->  | J43: =IFERROR(AVERAGEIFS(Duomenys[¢/MILE],Duomenys[DATA],G43,Duomenys[VEIKLA],$J$8),NA()) -> 
F44: 35 | G44: 2012-06-04 | H44: =SUMIFS(Duomenys[MYLIOS],Duomenys[DATA],G44,Duomenys[VEIKLA],$H$8) -> 0 | I44: =IFERROR(AVERAGEIFS(Duomenys[MPG],Duomenys[DATA],G44,Duomenys[VEIKLA],$I$8),NA()) ->  | J44: =IFERROR(AVERAGEIFS(Duomenys[¢/MILE],Duomenys[DATA],G44,Duomenys[VEIKLA],$J$8),NA()) -> 
F45: 36 | G45: 2012-06-05 | H45: =SUMIFS(Duomenys[MYLIOS],Duomenys[DATA],G45,Duomenys[VEIKLA],$H$8) -> 0 | I45: =IFERROR(AVERAGEIFS(Duomenys[MPG],Duomenys[DATA],G45,Duomenys[VEIKLA],$I$8),NA()) ->  | J45: =IFERROR(AVERAGEIFS(Duomenys[¢/MILE],Duomenys[DATA],G45,Duomenys[VEIKLA],$J$8),NA()) -> 
F46: 37 | G46: 2012-06-06 | H46: =SUMIFS(Duomenys[MYLIOS],Duomenys[DATA],G46,Duomenys[VEIKLA],$H$8) -> 0 | I46: =IFERROR(AVERAGEIFS(Duomenys[MPG],Duomenys[DATA],G46,Duomenys[VEIKLA],$I$8),NA()) ->  | J46: =IFERROR(AVERAGEIFS(Duomenys[¢/MILE],Duomenys[DATA],G46,Duomenys[VEIKLA],$J$8),NA()) -> 
F47: 38 | G47: 2012-06-07 | H47: =SUMIFS(Duomenys[MYLIOS],Duomenys[DATA],G47,Duomenys[VEIKLA],$H$8) -> 0 | I47: =IFERROR(AVERAGEIFS(Duomenys[MPG],Duomenys[DATA],G47,Duomenys[VEIKLA],$I$8),NA()) ->  | J47: =IFERROR(AVERAGEIFS(Duomenys[¢/MILE],Duomenys[DATA],G47,Duomenys[VEIKLA],$J$8),NA()) -> 
F48: 39 | G48: 2012-06-08 | H48: =SUMIFS(Duomenys[MYLIOS],Duomenys[DATA],G48,Duomenys[VEIKLA],$H$8) -> 0 | I48: =IFERROR(AVERAGEIFS(Duomenys[MPG],Duomenys[DATA],G48,Duomenys[VEIKLA],$I$8),NA()) ->  | J48: =IFERROR(AVERAGEIFS(Duomenys[¢/MILE],Duomenys[DATA],G48,Duomenys[VEIKLA],$J$8),NA()) -> 
F49: 40 | G49: 2012-06-09 | H49: =SUMIFS(Duomenys[MYLIOS],Duomenys[DATA],G49,Duomenys[VEIKLA],$H$8) -> 0 | I49: =IFERROR(AVERAGEIFS(Duomenys[MPG],Duomenys[DATA],G49,Duomenys[VEIKLA],$I$8),NA()) ->  | J49: =IFERROR(AVERAGEIFS(Duomenys[¢/MILE],Duomenys[DATA],G49,Duomenys[VEIKLA],$J$8),NA()) -> 
F50: 41 | G50: 2012-06-10 | H50: =SUMIFS(Duomenys[MYLIOS],Duomenys[DATA],G50,Duomenys[VEIKLA],$H$8) -> 0 | I50: =IFERROR(AVERAGEIFS(Duomenys[MPG],Duomenys[DATA],G50,Duomenys[VEIKLA],$I$8),NA()) ->  | J50: =IFERROR(AVERAGEIFS(Duomenys[¢/MILE],Duomenys[DATA],G50,Duomenys[VEIKLA],$J$8),NA()) -> 
F51: 42 | G51: 2012-06-11 | H51: =SUMIFS(Duomenys[MYLIOS],Duomenys[DATA],G51,Duomenys[VEIKLA],$H$8) -> 0 | I51: =IFERROR(AVERAGEIFS(Duomenys[MPG],Duomenys[DATA],G51,Duomenys[VEIKLA],$I$8),NA()) ->  | J51: =IFERROR(AVERAGEIFS(Duomenys[¢/MILE],Duomenys[DATA],G51,Duomenys[VEIKLA],$J$8),NA()) -> 
F52: 43 | G52: 2012-06-12 | H52: =SUMIFS(Duomenys[MYLIOS],Duomenys[DATA],G52,Duomenys[VEIKLA],$H$8) -> 0 | I52: =IFERROR(AVERAGEIFS(Duomenys[MPG],Duomenys[DATA],G52,Duomenys[VEIKLA],$I$8),NA()) ->  | J52: =IFERROR(AVERAGEIFS(Duomenys[¢/MILE],Duomenys[DATA],G52,Duomenys[VEIKLA],$J$8),NA()) -> 
F53: 44 | G53: 2012-06-13 | H53: =SUMIFS(Duomenys[MYLIOS],Duomenys[DATA],G53,Duomenys[VEIKLA],$H$8) -> 0 | I53: =IFERROR(AVERAGEIFS(Duomenys[MPG],Duomenys[DATA],G53,Duomenys[VEIKLA],$I$8),NA()) ->  | J53: =IFERROR(AVERAGEIFS(Duomenys[¢/MILE],Duomenys[DATA],G53,Duomenys[VEIKLA],$J$8),NA()) -> 
F54: 45 | G54: 2012-06-14 | H54: =SUMIFS(Duomenys[MYLIOS],Duomenys[DATA],G54,Duomenys[VEIKLA],$H$8) -> 0 | I54: =IFERROR(AVERAGEIFS(Duomenys[MPG],Duomenys[DATA],G54,Duomenys[VEIKLA],$I$8),NA()) ->  | J54: =IFERROR(AVERAGEIFS(Duomenys[¢/MILE],Duomenys[DATA],G54,Duomenys[VEIKLA],$J$8),NA()) -> 
F55: 46 | G55: 2012-06-15 | H55: =SUMIFS(Duomenys[MYLIOS],Duomenys[DATA],G55,Duomenys[VEIKLA],$H$8) -> 0 | I55: =IFERROR(AVERAGEIFS(Duomenys[MPG],Duomenys[DATA],G55,Duomenys[VEIKLA],$I$8),NA()) ->  | J55: =IFERROR(AVERAGEIFS(Duomenys[¢/MILE],Duomenys[DATA],G55,Duomenys[VEIKLA],$J$8),NA()) -> 
F56: 47 | G56: 2012-06-16 | H56: =SUMIFS(Duomenys[MYLIOS],Duomenys[DATA],G56,Duomenys[VEIKLA],$H$8) -> 0 | I56: =IFERROR(AVERAGEIFS(Duomenys[MPG],Duomenys[DATA],G56,Duomenys[VEIKLA],$I$8),NA()) ->  | J56: =IFERROR(AVERAGEIFS(Duomenys[¢/MILE],Duomenys[DATA],G56,Duomenys[VEIKLA],$J$8),NA()) -> 
F57: 48 | G57: 2012-06-17 | H57: =SUMIFS(Duomenys[MYLIOS],Duomenys[DATA],G57,Duomenys[VEIKLA],$H$8) -> 0 | I57: =IFERROR(AVERAGEIFS(Duomenys[MPG],Duomenys[DATA],G57,Duomenys[VEIKLA],$I$8),NA()) ->  | J57: =IFERROR(AVERAGEIFS(Duomenys[¢/MILE],Duomenys[DATA],G57,Duomenys[VEIKLA],$J$8),NA()) -> 
F58: 49 | G58: 2012-06-18 | H58: =SUMIFS(Duomenys[MYLIOS],Duomenys[DATA],G58,Duomenys[VEIKLA],$H$8) -> 0 | I58: =IFERROR(AVERAGEIFS(Duomenys[MPG],Duomenys[DATA],G58,Duomenys[VEIKLA],$I$8),NA()) ->  | J58: =IFERROR(AVERAGEIFS(Duomenys[¢/MILE],Duomenys[DATA],G58,Duomenys[VEIKLA],$J$8),NA()) -> 
F59: 50 | G59: 2012-06-19 | H59: =SUMIFS(Duomenys[MYLIOS],Duomenys[DATA],G59,Duomenys[VEIKLA],$H$8) -> 0 | I59: =IFERROR(AVERAGEIFS(Duomenys[MPG],Duomenys[DATA],G59,Duomenys[VEIKLA],$I$8),NA()) ->  | J59: =IFERROR(AVERAGEIFS(Duomenys[¢/MILE],Duomenys[DATA],G59,Duomenys[VEIKLA],$J$8),NA()) -> 
F60: 51 | G60: 2012-06-20 | H60: =SUMIFS(Duomenys[MYLIOS],Duomenys[DATA],G60,Duomenys[VEIKLA],$H$8) -> 0 | I60: =IFERROR(AVERAGEIFS(Duomenys[MPG],Duomenys[DATA],G60,Duomenys[VEIKLA],$I$8),NA()) ->  | J60: =IFERROR(AVERAGEIFS(Duomenys[¢/MILE],Duomenys[DATA],G60,Duomenys[VEIKLA],$J$8),NA()) -> 
F61: 52 | G61: 2012-06-21 | H61: =SUMIFS(Duomenys[MYLIOS],Duomenys[DATA],G61,Duomenys[VEIKLA],$H$8) -> 0 | I61: =IFERROR(AVERAGEIFS(Duomenys[MPG],Duomenys[DATA],G61,Duomenys[VEIKLA],$I$8),NA()) ->  | J61: =IFERROR(AVERAGEIFS(Duomenys[¢/MILE],Duomenys[DATA],G61,Duomenys[VEIKLA],$J$8),NA()) -> 
F62: 53 | G62: 2012-06-22 | H62: =SUMIFS(Duomenys[MYLIOS],Duomenys[DATA],G62,Duomenys[VEIKLA],$H$8) -> 0 | I62: =IFERROR(AVERAGEIFS(Duomenys[MPG],Duomenys[DATA],G62,Duomenys[VEIKLA],$I$8),NA()) ->  | J62: =IFERROR(AVERAGEIFS(Duomenys[¢/MILE],Duomenys[DATA],G62,Duomenys[VEIKLA],$J$8),NA()) -> 
F63: 54 | G63: 2012-06-23 | H63: =SUMIFS(Duomenys[MYLIOS],Duomenys[DATA],G63,Duomenys[VEIKLA],$H$8) -> 0 | I63: =IFERROR(AVERAGEIFS(Duomenys[MPG],Duomenys[DATA],G63,Duomenys[VEIKLA],$I$8),NA()) ->  | J63: =IFERROR(AVERAGEIFS(Duomenys[¢/MILE],Duomenys[DATA],G63,Duomenys[VEIKLA],$J$8),NA()) -> 
F64: 55 | G64: 2012-06-24 | H64: =SUMIFS(Duomenys[MYLIOS],Duomenys[DATA],G64,Duomenys[VEIKLA],$H$8) -> 0 | I64: =IFERROR(AVERAGEIFS(Duomenys[MPG],Duomenys[DATA],G64,Duomenys[VEIKLA],$I$8),NA()) ->  | J64: =IFERROR(AVERAGEIFS(Duomenys[¢/MILE],Duomenys[DATA],G64,Duomenys[VEIKLA],$J$8),NA()) -> 
F65: 56 | G65: 2012-06-25 | H65: =SUMIFS(Duomenys[MYLIOS],Duomenys[DATA],G65,Duomenys[VEIKLA],$H$8) -> 0 | I65: =IFERROR(AVERAGEIFS(Duomenys[MPG],Duomenys[DATA],G65,Duomenys[VEIKLA],$I$8),NA()) ->  | J65: =IFERROR(AVERAGEIFS(Duomenys[¢/MILE],Duomenys[DATA],G65,Duomenys[VEIKLA],$J$8),NA()) -> 
F66: 57 | G66: 2012-06-26 | H66: =SUMIFS(Duomenys[MYLIOS],Duomenys[DATA],G66,Duomenys[VEIKLA],$H$8) -> 0 | I66: =IFERROR(AVERAGEIFS(Duomenys[MPG],Duomenys[DATA],G66,Duomenys[VEIKLA],$I$8),NA()) ->  | J66: =IFERROR(AVERAGEIFS(Duomenys[¢/MILE],Duomenys[DATA],G66,Duomenys[VEIKLA],$J$8),NA()) -> 
F67: 58 | G67: 2012-06-27 | H67: =SUMIFS(Duomenys[MYLIOS],Duomenys[DATA],G67,Duomenys[VEIKLA],$H$8) -> 0 | I67: =IFERROR(AVERAGEIFS(Duomenys[MPG],Duomenys[DATA],G67,Duomenys[VEIKLA],$I$8),NA()) ->  | J67: =IFERROR(AVERAGEIFS(Duomenys[¢/MILE],Duomenys[DATA],G67,Duomenys[VEIKLA],$J$8),NA()) -> 
F68: 59 | G68: 2012-06-28 | H68: =SUMIFS(Duomenys[MYLIOS],Duomenys[DATA],G68,Duomenys[VEIKLA],$H$8) -> 0 | I68: =IFERROR(AVERAGEIFS(Duomenys[MPG],Duomenys[DATA],G68,Duomenys[VEIKLA],$I$8),NA()) ->  | J68: =IFERROR(AVERAGEIFS(Duomenys[¢/MILE],Duomenys[DATA],G68,Duomenys[VEIKLA],$J$8),NA()) -> 
F69: 60 | G69: 2012-06-29 | H69: =SUMIFS(Duomenys[MYLIOS],Duomenys[DATA],G69,Duomenys[VEIKLA],$H$8) -> 0 | I69: =IFERROR(AVERAGEIFS(Duomenys[MPG],Duomenys[DATA],G69,Duomenys[VEIKLA],$I$8),NA()) ->  | J69: =IFERROR(AVERAGEIFS(Duomenys[¢/MILE],Duomenys[DATA],G69,Duomenys[VEIKLA],$J$8),NA()) -> 
